[Event "Turkish Club Cup 2019"]
[Site "Konya"]
[Date "2019.07.18"]
[Round "4"]
[White "Sinay, Ahmet"]
[Black "Sahin, Hayrun Nisa"]
[Result "1/2-1/2"]
[ECO "A48"]
[WhiteElo "1692"]
[BlackElo "1772"]
[Annotator "NA RC"]
[PlyCount "132"]
[EventDate "2019.07.16"]
[EventType "team-tourn"]
[EventCountry "TUR"]
[SourceTitle "playchess.com"]
[Source "ChessBase"]
[SourceQuality "1"]
[TimeControl "5400+30"]

1. d4 {[%emt 0:00:30]} Nf6 {[%emt 0:00:30]} 2. Bf4 {[%emt 0:00:00]} g6 {[%emt 0:00:30]} 3. e3 {[%emt 0:00:00]} Bg7 {[%emt 0:00:00]} 4. Nf3 {[%emt 0:00:30]} d6 {[%emt 0:00:00]} 5. h3 {[%emt 0:00:30]} O-O {[%emt 0:00:30]} 6. Be2 {[%emt 0:00:00]} c5 {[%emt 0:00:00]} 7. c3 {[%emt 0:00:00]} Qb6 {[%emt 0:00:00]} 8. Qc1 {[%emt 0:04:30]} Nbd7 {[%emt 0:07:30]} 9. Nbd2 {[%emt 0:03:30]} Re8 {[%emt 0:01:30]} 10. O-O {[%emt 0:01:30]} Qc7 {[%emt 0:11:30]} 11. Bh2 {[%emt 0:01:30]} a6 {[%emt 0:01:30]} 12. Re1 {[%emt 0:00:30]} b5 {[%emt 0:02:30]} 13. a4 {[%emt 0:09:30]} bxa4 {[%emt 0:07:30]} 14. Rxa4 {[%emt 0:00:30]} Bb7 {[%emt 0:10:30]} 15. Ra1 {[%emt 0:04:30]} Reb8 {[%emt 0:06:30]} 16. Ra3 {[%emt 0:12:30]} a5 {[%emt 0:03:30]} 17. Qa1 {[%emt 0:00:30]} Bc6 {[%emt 0:03:30]} 18. Rb1 {[%emt 0:08:30]} Ne4 {[%emt 0:10:30]} 19. Qa2 {[%emt 0:09:30]} Qb7 {[%emt 0:09:30]} 20. Bc4 {[%emt 0:11:30]} Rf8 {[%emt 0:03:48]} 21. d5 {[%emt 0:13:34]} Nxd2 {[%emt 0:02:15]} 22. Nxd2 {[%emt 0:00:07]} Bb5 {[%emt 0:00:00]} 23. Qb3 {[%emt 0:00:49]} Rfb8 {[%emt 0:00:48]} 24. Qxb5 {[%emt 0:00:49]} Qxb5 {[%emt 0:00:30]} 25. Bxb5 {[%emt 0:00:00]} Rxb5 {[%emt 0:00:00]} 26. e4 {[%emt 0:00:39]} Rab8 {[%emt 0:00:00]} 27. Nc4 {[%emt 0:00:00]} Kf8 {[%emt 0:03:49]} 28. Bf4 {[%emt 0:02:24]} h6 {[%emt 0:08:54]} 29. Rxa5 {[%emt 0:02:37]} Rxa5 {[%emt 0:02:13]} 30. Nxa5 {[%emt 0:00:04]} Bxc3 {[%emt 0:01:08]} 31. Bxh6+ {[%emt 0:00:59]} Kg8 {[%emt 0:01:08]} 32. Nc6 {[%emt 0:02:39]} Rxb2 {[%emt 0:00:07]} 33. Rxb2 {[%emt 0:00:19]} Bxb2 {[%emt 0:00:02]} 34. Nxe7+ {[%emt 0:00:00]} Kh7 {[%emt 0:00:50]} 35. Bf4 {[%emt 0:00:06]} c4 {[%emt 0:01:59]} 36. Nc6 {[%emt 0:00:04]} c3 {[%emt 0:01:33]} 37. Nb4 {[%emt 0:02:54]} Nb6 {[%emt 0:00:31]} 38. Nc2 {[%emt 0:01:10]} Nc4 {[%emt 0:00:43]} 39. Kf1 {[%emt 0:01:06]} Na3 {[%emt 0:00:57]} 40. Nb4 {[%emt 0:00:09]} c2 {[%emt 0:00:41]} 41. Nd3 {[%emt 0:00:03]} Bc3 {[%emt 0:00:03]} 42. Bc1 {[%emt 0:00:22]} Nb5 {[%emt 0:00:19]} 43. Be3 {[%emt 0:01:30]} Na3 {[%emt 0:00:18]} 44. Ke2 {[%emt 0:00:29]} Nc4 {[%emt 0:00:44]} 45. Bc1 {[%emt 0:00:04]} Na5 {[%emt 0:00:11]} 46. Bd2 {[%emt 0:00:30]} Bxd2 {[%emt 0:00:56]} 47. Kxd2 {[%emt 0:00:30]} Kg7 {[%emt 0:00:30]} 48. Kxc2 {[%emt 0:00:30]} Nc4 {[%emt 0:00:05]} 49. Kb3 {[%emt 0:00:00]} Nd2+ {[%emt 0:00:31]} 50. Kc2 {[%emt 0:00:06]} Nxe4 {[%emt 0:00:00]} 51. f3 {[%emt 0:00:00]} Nf6 {[%emt 0:00:00]} 52. Nb4 {[%emt 0:00:16]} Nh5 {[%emt 0:00:00]} 53. Kd2 {[%emt 0:00:45]} Nf4 {[%emt 0:00:07]} 54. g3 {[%emt 0:00:05]} Nxh3 {[%emt 0:00:26]} 55. Ke3 {[%emt 0:00:17]} Ng5 {[%emt 0:01:30]} 56. Nc2 {[%emt 0:00:11]} Nh7 {[%emt 0:01:00]} 57. g4 {[%emt 0:01:04]} Kf6 {[%emt 0:01:04]} 58. Kf4 {[%emt 0:01:23]} Nf8 {[%emt 0:00:49]} 59. Nd4 {[%emt 0:00:43]} Nd7 {[%emt 0:00:33]} 60. g5+ {[%emt 0:01:02]} Ke7 {[%emt 0:00:11]} 61. Nc6+ {[%emt 0:00:12]} Ke8 {[%emt 0:00:12]} 62. Ke4 {[%emt 0:00:15]} Nc5+ {[%emt 0:00:51]} 63. Kd4 {[%emt 0:00:11]} Nb3+ {[%emt 0:00:04]} 64. Kc3 {[%emt 0:00:49]} Nc5 {[%emt 0:00:30]} 65. Kd4 {[%emt 0:00:00]} Nb3+ {[%emt 0:00:17]} 66. Kc3 {[%emt 0:00:27]} Nc5 {[%emt 0:00:08]} 1/2-1/2

[Event "Turkish Club Cup 2019"]
[Site "Konya"]
[Date "2019.07.18"]
[Round "4"]
[White "Uysal, Ugur"]
[Black "Banci, Dogancan"]
[Result "1/2-1/2"]
[ECO "A33"]
[WhiteElo "1689"]
[BlackElo "1643"]
[Annotator "NA RC"]
[PlyCount "88"]
[EventDate "2019.07.16"]
[EventType "team-tourn"]
[EventCountry "TUR"]
[SourceTitle "playchess.com"]
[Source "ChessBase"]
[SourceQuality "1"]
[TimeControl "5400+30"]

1. Nf3 {[%emt 0:00:30]} Nf6 {[%emt 0:00:30]} 2. d4 {[%emt 0:00:30]} c5 {[%emt 0:00:30]} 3. c4 {[%emt 0:00:30]} cxd4 {[%emt 0:00:30]} 4. Nxd4 {[%emt 0:00:30]} e6 {[%emt 0:00:30]} 5. g3 {[%emt 0:00:30]} Be7 {[%emt 0:00:30]} 6. Bg2 {[%emt 0:00:30]} O-O {[%emt 0:00:30]} 7. Nc3 {[%emt 0:00:30]} a6 {[%emt 0:00:30]} 8. O-O {[%emt 0:00:30]} Nc6 {[%emt 0:04:30]} 9. b3 {[%emt 0:01:30]} Qc7 {[%emt 0:06:30]} 10. Bb2 {[%emt 0:04:30]} b6 {[%emt 0:05:30]} 11. Nxc6 {[%emt 0:03:30]} dxc6 {[%emt 0:00:00]} 12. Ne4 {[%emt 0:00:30]} Rd8 {[%emt 0:23:00]} 13. Qc2 {[%emt 0:00:30]} Bb7 {[%emt 0:07:30]} 14. Nxf6+ {[%emt 0:02:30]} Bxf6 {[%emt 0:03:30]} 15. Bxf6 {[%emt 0:00:30]} gxf6 {[%emt 0:00:30]} 16. c5 {[%emt 0:00:30]} b5 {[%emt 0:04:30]} 17. f4 {[%emt 0:09:30]} Qe7 {[%emt 0:10:30]} 18. a4 {[%emt 0:01:30]} Rd7 {[%emt 0:18:07]} 19. axb5 {[%emt 0:16:30]} axb5 {[%emt 0:00:21]} 20. Rxa8+ {[%emt 0:01:30]} Bxa8 {[%emt 0:00:10]} 21. Qc3 {[%emt 0:01:30]} Qd8 {[%emt 0:07:00]} 22. Bf3 {[%emt 0:03:30]} Rd2 {[%emt 0:03:35]} 23. Ra1 {[%emt 0:01:30]} Rd1+ {[%emt 0:00:29]} 24. Rxd1 {[%emt 0:00:30]} Qxd1+ {[%emt 0:00:30]} 25. Kf2 {[%emt 0:00:00]} Qd8 {[%emt 0:00:54]} 26. Qd3 {[%emt 0:02:00]} Qxd3 {[%emt 0:01:27]} 27. exd3 {[%emt 0:00:30]} Kf8 {[%emt 0:00:07]} 28. Ke3 {[%emt 0:00:00]} Ke7 {[%emt 0:00:34]} 29. g4 {[%emt 0:01:00]} Bb7 {[%emt 0:00:40]} 30. Be4 {[%emt 0:00:00]} h6 {[%emt 0:00:14]} 31. Kd4 {[%emt 0:00:00]} Kd7 {[%emt 0:01:11]} 32. h4 {[%emt 0:00:30]} Ke7 {[%emt 0:00:29]} 33. Bg2 {[%emt 0:00:30]} Kd7 {[%emt 0:00:45]} 34. Bf3 {[%emt 0:00:30]} Ke7 {[%emt 0:00:20]} 35. Be4 {[%emt 0:00:00]} Kd7 {[%emt 0:00:09]} 36. g5 {[%emt 0:01:00]} fxg5 {[%emt 0:00:22]} 37. fxg5 {[%emt 0:00:30]} hxg5 {[%emt 0:00:30]} 38. hxg5 {[%emt 0:00:00]} Kd8 {[%emt 0:01:12]} 39. Ke5 {[%emt 0:00:00]} Ke7 {[%emt 0:00:00]} 40. b4 {[%emt 0:02:30]} Ba8 {[%emt 0:00:26]} 41. Bg2 {[%emt 0:10:30]} Bb7 {[%emt 0:00:32]} 42. Bf3 {[%emt 0:00:30]} Ba8 {[%emt 0:00:26]} 43. Be4 {[%emt 0:11:30]} Bb7 {[%emt 0:00:05]} 44. Bf3 {[%emt 0:06:30]} Ba8 {[%emt 0:00:08]} 1/2-1/2

[Event "Turkish Club Cup 2019"]
[Site "Konya"]
[Date "2019.07.18"]
[Round "4"]
[White "Polat, Ahmet Eren"]
[Black "Keskin, Osman Orcun"]
[Result "1/2-1/2"]
[ECO "B13"]
[WhiteElo "1651"]
[BlackElo "1719"]
[Annotator "NA"]
[PlyCount "65"]
[EventDate "2019.07.16"]
[EventType "team-tourn"]
[EventCountry "TUR"]
[SourceTitle "playchess.com"]
[Source "ChessBase"]
[SourceQuality "1"]
[TimeControl "5400+30"]

1. e4 {[%emt 0:00:30]} c6 {[%emt 0:00:30]} 2. Nf3 {[%emt 0:00:30]} d5 {[%emt 0:00:00]} 3. Nc3 {[%emt 0:00:30]} Bg4 {[%emt 0:00:00]} 4. Be2 {[%emt 0:02:30]} e6 {[%emt 0:00:30]} 5. d4 {[%emt 0:01:30]} Nf6 {[%emt 0:05:30]} 6. exd5 {[%emt 0:01:30]} cxd5 {[%emt 0:00:30]} 7. Ne5 {[%emt 0:04:30]} Bxe2 {[%emt 0:01:30]} 8. Qxe2 {[%emt 0:00:30]} a6 {[%emt 0:00:30]} 9. O-O {[%emt 0:01:30]} Nc6 {[%emt 0:00:00]} 10. Nxc6 {[%emt 0:01:30]} bxc6 {[%emt 0:00:00]} 11. Na4 {[%emt 0:10:30]} Bd6 {[%emt 0:03:30]} 12. c3 {[%emt 0:07:30]} h6 {[%emt 0:03:30]} 13. b4 {[%emt 0:09:30]} O-O {[%emt 0:01:30]} 14. Be3 {[%emt 0:17:30]} Qc7 {[%emt 0:02:30]} 15. g3 {[%emt 0:01:30]} Ne4 {[%emt 0:05:30]} 16. f3 {[%emt 0:01:30]} Nf6 {[%emt 0:00:30]} 17. Nc5 {[%emt 0:01:30]} Bxc5 {[%emt 0:04:30]} 18. bxc5 {[%emt 0:02:30]} e5 {[%emt 0:02:30]} 19. Rab1 {[%emt 0:02:30]} Rfe8 {[%emt 0:01:30]} 20. Qd2 {[%emt 0:04:30]} Nd7 {[%emt 0:04:30]} 21. Rb2 {[%emt 0:01:30]} Rab8 {[%emt 0:01:30]} 22. Rfb1 {[%emt 0:00:30]} Rxb2 {[%emt 0:00:30]} 23. Rxb2 {[%emt 0:03:30]} Rb8 {[%emt 0:28:30]} 24. Qc2 {[%emt 0:04:03]} Rb5 {[%emt 0:02:30]} 25. a4 {[%emt 0:01:44]} Rxb2 {[%emt 0:03:30]} 26. Qxb2 {[%emt 0:00:02]} exd4 {[%emt 0:01:30]} 27. Bxd4 {[%emt 0:00:58]} f6 {[%emt 0:04:30]} 28. Qe2 {[%emt 0:00:33]} Ne5 {[%emt 0:01:30]} 29. Bxe5 {[%emt 0:09:14]} Qxe5 {[%emt 0:02:33]} 30. Qxa6 {[%emt 0:03:49]} Qxc3 {[%emt 0:01:54]} 31. Qxc6 {[%emt 0:01:24]} Qc1+ {[%emt 0:00:28]} 32. Kg2 {[%emt 0:00:39]} Qc2+ {[%emt 0:00:09]} 33. Kf1 {[%emt 0:01:28]} 1/2-1/2

[Event "Turkish Club Cup 2019"]
[Site "Konya"]
[Date "2019.07.18"]
[Round "4"]
[White "Bozdemir, Yusuf"]
[Black "Kara, Ali Barkin"]
[Result "0-1"]
[ECO "A48"]
[WhiteElo "1637"]
[BlackElo "1749"]
[Annotator "NA"]
[PlyCount "100"]
[EventDate "2019.07.16"]
[EventType "team-tourn"]
[EventCountry "TUR"]
[SourceTitle "playchess.com"]
[Source "ChessBase"]
[SourceQuality "1"]
[TimeControl "5400+30"]

1. d4 {[%emt 0:00:30]} Nf6 {[%emt 0:00:30]} 2. Nf3 {[%emt 0:00:00]} g6 {[%emt 0:00:30]} 3. Bf4 {[%emt 0:00:00]} Bg7 {[%emt 0:00:30]} 4. e3 {[%emt 0:00:30]} d6 {[%emt 0:00:00]} 5. h3 {[%emt 0:00:00]} O-O {[%emt 0:00:00]} 6. Be2 {[%emt 0:00:00]} c5 {[%emt 0:00:00]} 7. c3 {[%emt 0:00:00]} b6 {[%emt 0:00:00]} 8. O-O {[%emt 0:00:00]} Bb7 {[%emt 0:00:00]} 9. a4 {[%emt 0:00:30]} a6 {[%emt 0:00:00]} 10. Nbd2 {[%emt 0:00:30]} Nbd7 {[%emt 0:00:00]} 11. Qb3 {[%emt 0:05:30]} Qc7 {[%emt 0:04:00]} 12. Bh2 {[%emt 0:00:30]} Rac8 {[%emt 0:01:30]} 13. Rfd1 {[%emt 0:04:30]} Rfe8 {[%emt 0:05:30]} 14. Bc4 {[%emt 0:02:30]} e6 {[%emt 0:04:30]} 15. Ng5 {[%emt 0:25:30]} Qc6 {[%emt 0:01:30]} 16. Bf1 {[%emt 0:01:30]} h6 {[%emt 0:02:30]} 17. Ngf3 {[%emt 0:00:30]} d5 {[%emt 0:00:30]} 18. Ne5 {[%emt 0:01:30]} Nxe5 {[%emt 0:00:30]} 19. Bxe5 {[%emt 0:00:00]} c4 {[%emt 0:07:30]} 20. Qc2 {[%emt 0:03:00]} Nd7 {[%emt 0:08:30]} 21. Bxg7 {[%emt 0:00:30]} Kxg7 {[%emt 0:00:00]} 22. e4 {[%emt 0:01:30]} dxe4 {[%emt 0:03:00]} 23. Nxc4 {[%emt 0:00:30]} Qd5 {[%emt 0:01:30]} 24. Ne3 {[%emt 0:03:30]} Qg5 {[%emt 0:03:30]} 25. Qd2 {[%emt 0:04:30]} Red8 {[%emt 0:04:30]} 26. Ng4 {[%emt 0:01:30]} Qh4 {[%emt 0:05:30]} 27. g3 {[%emt 0:08:30]} Qh5 {[%emt 0:00:30]} 28. Qf4 {[%emt 0:00:30]} f5 {[%emt 0:05:30]} 29. Ne5 {[%emt 0:05:30]} g5 {[%emt 0:02:30]} 30. g4 {[%emt 0:02:30]} Qe8 {[%emt 0:00:30]} 31. Qh2 {[%emt 0:00:30]} f4 {[%emt 0:01:30]} 32. h4 {[%emt 0:01:30]} Nxe5 {[%emt 0:00:30]} 33. dxe5 {[%emt 0:00:00]} Rd5 {[%emt 0:02:30]} 34. hxg5 {[%emt 0:01:00]} hxg5 {[%emt 0:00:30]} 35. Qh5 {[%emt 0:00:30]} Qe7 {[%emt 0:00:00]} 36. Rxd5 {[%emt 0:01:30]} exd5 {[%emt 0:00:00]} 37. e6 {[%emt 0:01:30]} Rh8 {[%emt 0:00:30]} 38. Qf7+ {[%emt 0:00:00]} Qxf7 {[%emt 0:00:30]} 39. exf7 {[%emt 0:00:00]} Kxf7 {[%emt 0:00:00]} 40. f3 {[%emt 0:00:00]} Rh4 {[%emt 0:01:00]} 41. Bg2 {[%emt 0:00:00]} e3 {[%emt 0:00:30]} 42. a5 {[%emt 0:01:30]} b5 {[%emt 0:00:00]} 43. Rd1 {[%emt 0:01:30]} Ke6 {[%emt 0:00:00]} 44. Rd4 {[%emt 0:00:30]} Ke5 {[%emt 0:00:30]} 45. Bf1 {[%emt 0:00:30]} Bc8 {[%emt 0:00:30]} 46. Kg2 {[%emt 0:00:30]} Bxg4 {[%emt 0:02:30]} 47. fxg4 {[%emt 0:00:30]} Rxg4+ {[%emt 0:00:30]} 48. Kf3 {[%emt 0:00:30]} Rg1 {[%emt 0:00:30]} 49. Rd1 {[%emt 0:01:30]} g4+ {[%emt 0:01:30]} 50. Ke2 {[%emt 0:00:30]} g3 {[%emt 0:00:30]} 0-1

[Event "Turkish Club Cup 2019"]
[Site "Konya"]
[Date "2019.07.18"]
[Round "4"]
[White "Yildirim, Yasin"]
[Black "Guder, Serkan"]
[Result "1/2-1/2"]
[ECO "B75"]
[WhiteElo "1619"]
[BlackElo "1872"]
[Annotator "NA RC"]
[PlyCount "93"]
[EventDate "2019.07.16"]
[EventType "team-tourn"]
[EventCountry "TUR"]
[SourceTitle "playchess.com"]
[Source "ChessBase"]
[SourceQuality "1"]
[TimeControl "5400+30"]

1. d4 {[%emt 0:00:30]} g6 {[%emt 0:01:30]} 2. e4 {[%emt 0:00:30]} Bg7 {[%emt 0:00:30]} 3. Nc3 {[%emt 0:00:00]} c5 {[%emt 0:01:30]} 4. Nf3 {[%emt 0:06:00]} cxd4 {[%emt 0:01:30]} 5. Nxd4 {[%emt 0:00:30]} Nc6 {[%emt 0:00:00]} 6. Be3 {[%emt 0:00:00]} d6 {[%emt 0:00:00]} 7. Qd2 {[%emt 0:03:00]} Nf6 {[%emt 0:01:30]} 8. f3 {[%emt 0:00:30]} Bd7 {[%emt 0:00:30]} 9. O-O-O {[%emt 0:02:30]} Rc8 {[%emt 0:01:30]} 10. Nxc6 {[%emt 0:13:30]} Bxc6 {[%emt 0:00:30]} 11. e5 {[%emt 0:00:30]} dxe5 {[%emt 0:01:30]} 12. Qxd8+ {[%emt 0:02:30]} Rxd8 {[%emt 0:00:30]} 13. Rxd8+ {[%emt 0:00:30]} Kxd8 {[%emt 0:00:00]} 14. Bxa7 {[%emt 0:04:30]} Bh6+ {[%emt 0:04:00]} 15. Kb1 {[%emt 0:01:30]} e4 {[%emt 0:00:30]} 16. Bb6+ {[%emt 0:00:30]} Kc8 {[%emt 0:00:30]} 17. fxe4 {[%emt 0:03:30]} Nxe4 {[%emt 0:00:30]} 18. Nxe4 {[%emt 0:00:30]} Bxe4 {[%emt 0:00:00]} 19. Bc4 {[%emt 0:09:30]} Bxg2 {[%emt 0:22:00]} 20. Rg1 {[%emt 0:01:30]} Be4 {[%emt 0:01:30]} 21. Bxf7 {[%emt 0:00:30]} Bf5 {[%emt 0:07:30]} 22. b4 {[%emt 0:06:30]} e6 {[%emt 0:02:30]} 23. Rd1 {[%emt 0:02:30]} Bf4 {[%emt 0:06:30]} 24. Bc5 {[%emt 0:09:30]} Rd8 {[%emt 0:02:30]} 25. Re1 {[%emt 0:06:30]} Kc7 {[%emt 0:01:30]} 26. Re2 {[%emt 0:09:49]} b6 {[%emt 0:04:30]} 27. Bf2 {[%emt 0:02:29]} Rf8 {[%emt 0:15:30]} 28. Bxe6 {[%emt 0:01:58]} Re8 {[%emt 0:00:00]} 29. Bc4 {[%emt 0:00:41]} Rxe2 {[%emt 0:00:00]} 30. Bxe2 {[%emt 0:00:00]} Bxh2 {[%emt 0:00:30]} 31. a4 {[%emt 0:03:10]} g5 {[%emt 0:00:30]} 32. Bf3 {[%emt 0:01:33]} g4 {[%emt 0:00:30]} 33. Bg2 {[%emt 0:00:04]} Bd7 {[%emt 0:04:30]} 34. b5 {[%emt 0:01:32]} Bc8 {[%emt 0:00:30]} 35. c4 {[%emt 0:08:11]} Bb7 {[%emt 0:00:34]} 36. Bxb7 {[%emt 0:00:46]} Kxb7 {[%emt 0:00:30]} 37. Kc2 {[%emt 0:00:30]} g3 {[%emt 0:00:30]} 38. Be3 {[%emt 0:00:30]} g2 {[%emt 0:00:30]} 39. c5 {[%emt 0:00:30]} bxc5 {[%emt 0:00:30]} 40. Bxc5 {[%emt 0:00:30]} Bc7 {[%emt 0:00:30]} 41. Bg1 {[%emt 0:00:30]} h5 {[%emt 0:00:30]} 42. Kd3 {[%emt 0:00:30]} h4 {[%emt 0:00:30]} 43. Ke2 {[%emt 0:00:30]} h3 {[%emt 0:00:30]} 44. Kf3 {[%emt 0:00:30]} Bd6 {[%emt 0:00:30]} 45. a5 {[%emt 0:00:00]} h2 {[%emt 0:07:44]} 46. Kxg2 {[%emt 0:00:00]} hxg1=Q+ {[%emt 0:00:41]} 47. Kxg1 {[%emt 0:00:00]} 1/2-1/2

[Event "Turkish Club Cup 2019"]
[Site "Konya"]
[Date "2019.07.18"]
[Round "4"]
[White "Canakay, Ahmet"]
[Black "Memis, Furkan"]
[Result "0-1"]
[ECO "B17"]
[WhiteElo "1583"]
[BlackElo "1691"]
[Annotator "NA"]
[PlyCount "53"]
[EventDate "2019.07.16"]
[EventType "team-tourn"]
[EventCountry "TUR"]
[SourceTitle "playchess.com"]
[Source "ChessBase"]
[SourceQuality "1"]
[TimeControl "5400+30"]

1. e4 {[%emt 0:00:30]} c6 {[%emt 0:00:30]} 2. d4 {[%emt 0:00:30]} d5 {[%emt 0:00:00]} 3. Nc3 {[%emt 0:01:30]} dxe4 {[%emt 0:04:00]} 4. Nxe4 {[%emt 0:00:30]} Nd7 {[%emt 0:02:30]} 5. Nf3 {[%emt 0:06:30]} Ngf6 {[%emt 0:00:00]} 6. Ng3 {[%emt 0:00:30]} e6 {[%emt 0:01:00]} 7. Bd3 {[%emt 0:03:30]} Bd6 {[%emt 0:02:30]} 8. Qe2 {[%emt 0:00:30]} O-O {[%emt 0:00:30]} 9. O-O {[%emt 0:00:30]} Qc7 {[%emt 0:01:30]} 10. Re1 {[%emt 0:02:30]} b6 {[%emt 0:06:30]} 11. Ne5 {[%emt 0:02:30]} c5 {[%emt 0:27:30]} 12. Nxd7 {[%emt 0:07:30]} Qxd7 {[%emt 0:07:30]} 13. Bg5 {[%emt 0:01:30]} Nd5 {[%emt 0:07:30]} 14. c4 {[%emt 0:24:30]} Nb4 {[%emt 0:00:30]} 15. Bxh7+ {[%emt 0:13:30]} Kxh7 {[%emt 0:00:30]} 16. Qh5+ {[%emt 0:00:00]} Kg8 {[%emt 0:00:30]} 17. Bf6 {[%emt 0:00:00]} Bf4 {[%emt 0:04:30]} 18. Qg4 {[%emt 0:09:30]} Bh6 {[%emt 0:00:30]} 19. Re4 {[%emt 0:00:30]} e5 {[%emt 0:07:30]} 20. Qh4 {[%emt 0:02:30]} Qe6 {[%emt 0:01:30]} 21. Bxe5 {[%emt 0:04:08]} Qg6 {[%emt 0:03:47]} 22. f4 {[%emt 0:05:16]} f5 {[%emt 0:02:15]} 23. Re2 {[%emt 0:01:52]} cxd4 {[%emt 0:00:24]} 24. Bxd4 {[%emt 0:00:27]} Nd3 {[%emt 0:01:18]} 25. Rf1 {[%emt 0:04:56]} Bb7 {[%emt 0:01:42]} 26. Re7 {[%emt 0:00:06]} Be4 {[%emt 0:00:37]} 27. Nh5 {[%emt 0:01:18]} 0-1

[Event "Turkish Club Cup 2019"]
[Site "Konya"]
[Date "2019.07.18"]
[Round "4"]
[White "Alev, Gonulden Seda"]
[Black "Kilic, Gulseren"]
[Result "1-0"]
[ECO "B40"]
[WhiteElo "1579"]
[BlackElo "1422"]
[Annotator "NA RC"]
[PlyCount "95"]
[EventDate "2019.07.16"]
[EventType "team-tourn"]
[EventCountry "TUR"]
[SourceTitle "playchess.com"]
[Source "ChessBase"]
[SourceQuality "1"]
[TimeControl "5400+30"]

1. e4 {[%emt 0:00:30]} c5 {[%emt 0:00:30]} 2. b3 {[%emt 0:00:00]} Nc6 {[%emt 0:00:30]} 3. Bb2 {[%emt 0:00:00]} e6 {[%emt 0:00:30]} 4. Nf3 {[%emt 0:03:30]} d5 {[%emt 0:01:30]} 5. exd5 {[%emt 0:02:30]} exd5 {[%emt 0:00:30]} 6. d4 {[%emt 0:00:30]} Nf6 {[%emt 0:01:30]} 7. Be2 {[%emt 0:06:30]} Be7 {[%emt 0:00:30]} 8. O-O {[%emt 0:08:30]} O-O {[%emt 0:01:30]} 9. Nc3 {[%emt 0:05:30]} Bg4 {[%emt 0:08:30]} 10. dxc5 {[%emt 0:10:30]} Bxc5 {[%emt 0:00:30]} 11. Qd2 {[%emt 0:01:30]} Re8 {[%emt 0:05:30]} 12. Rad1 {[%emt 0:13:30]} Ne4 {[%emt 0:07:30]} 13. Nxe4 {[%emt 0:01:30]} Rxe4 {[%emt 0:21:30]} 14. Qc3 {[%emt 0:08:30]} Bf8 {[%emt 0:16:30]} 15. Bc4 {[%emt 0:12:30]} d4 {[%emt 0:05:30]} 16. Qd2 {[%emt 0:11:31]} Bxf3 {[%emt 0:02:30]} 17. gxf3 {[%emt 0:00:11]} Rh4 {[%emt 0:00:00]} 18. f4 {[%emt 0:06:50]} Bd6 {[%emt 0:11:27]} 19. f3 {[%emt 0:04:17]} Bxf4 {[%emt 0:01:19]} 20. Qg2 {[%emt 0:00:40]} Bxh2+ {[%emt 0:06:28]} 21. Kf2 {[%emt 0:00:42]} Bf4 {[%emt 0:00:06]} 22. Rh1 {[%emt 0:00:16]} Rxh1 {[%emt 0:02:31]} 23. Rxh1 {[%emt 0:00:22]} Qe7 {[%emt 0:00:51]} 24. Re1 {[%emt 0:00:55]} Qh4+ {[%emt 0:00:34]} 25. Kf1 {[%emt 0:00:24]} Qg3 {[%emt 0:01:53]} 26. Qe2 {[%emt 0:00:34]} Be3 {[%emt 0:00:49]} 27. Qg2 {[%emt 0:00:56]} Qxg2+ {[%emt 0:00:30]} 28. Kxg2 {[%emt 0:00:00]} Rd8 {[%emt 0:00:19]} 29. Re2 {[%emt 0:00:39]} h5 {[%emt 0:00:44]} 30. c3 {[%emt 0:00:40]} dxc3 {[%emt 0:00:56]} 31. Bxc3 {[%emt 0:00:03]} Bc5 {[%emt 0:00:23]} 32. Kg3 {[%emt 0:00:51]} Nd4 {[%emt 0:00:55]} 33. Re4 {[%emt 0:00:35]} Nf5+ {[%emt 0:00:24]} 34. Kf4 {[%emt 0:00:29]} Nd6 {[%emt 0:00:25]} 35. Re5 {[%emt 0:00:29]} Nxc4 {[%emt 0:00:19]} 36. Rxc5 {[%emt 0:00:09]} Na3 {[%emt 0:01:18]} 37. Bb2 {[%emt 0:01:17]} Nb1 {[%emt 0:00:30]} 38. Rc1 {[%emt 0:00:08]} Nd2 {[%emt 0:01:06]} 39. Rd1 {[%emt 0:00:30]} g5+ {[%emt 0:00:02]} 40. Kf5 {[%emt 0:00:31]} Rd5+ {[%emt 0:00:06]} 41. Be5 {[%emt 0:00:26]} h4 {[%emt 0:00:40]} 42. f4 {[%emt 0:00:31]} f6 {[%emt 0:00:47]} 43. Ke6 {[%emt 0:00:24]} Rxe5+ {[%emt 0:00:34]} 44. fxe5 {[%emt 0:00:09]} Ne4 {[%emt 0:00:57]} 45. exf6 {[%emt 0:00:13]} h3 {[%emt 0:00:05]} 46. f7+ {[%emt 0:00:30]} Kg7 {[%emt 0:00:08]} 47. Rd8 {[%emt 0:00:22]} Nc5+ {[%emt 0:00:51]} 48. Ke7 {[%emt 0:00:28]} 1-0

[Event "Turkish Club Cup 2019"]
[Site "Konya"]
[Date "2019.07.18"]
[Round "4"]
[White "Metin, Enis"]
[Black "Kul, Ozdemir Efe"]
[Result "1-0"]
[ECO "B06"]
[WhiteElo "1538"]
[BlackElo "1974"]
[Annotator "NA"]
[PlyCount "67"]
[EventDate "2019.07.16"]
[EventType "team-tourn"]
[EventCountry "TUR"]
[SourceTitle "playchess.com"]
[Source "ChessBase"]
[SourceQuality "1"]
[TimeControl "5400+30"]

1. e4 {[%emt 0:00:30]} g6 {[%emt 0:00:30]} 2. d4 {[%emt 0:00:00]} Bg7 {[%emt 0:00:30]} 3. Bc4 {[%emt 0:02:00]} d6 {[%emt 0:00:30]} 4. Nf3 {[%emt 0:00:30]} a6 {[%emt 0:00:30]} 5. a4 {[%emt 0:03:30]} e6 {[%emt 0:00:30]} 6. Nc3 {[%emt 0:00:30]} b6 {[%emt 0:00:30]} 7. O-O {[%emt 0:00:30]} Bb7 {[%emt 0:00:30]} 8. Be3 {[%emt 0:02:30]} h6 {[%emt 0:01:30]} 9. h3 {[%emt 0:01:30]} Nd7 {[%emt 0:00:30]} 10. Qd2 {[%emt 0:04:30]} Ne7 {[%emt 0:02:30]} 11. Rfe1 {[%emt 0:01:30]} Nf6 {[%emt 0:03:30]} 12. Bf4 {[%emt 0:02:30]} g5 {[%emt 0:04:30]} 13. Bh2 {[%emt 0:00:30]} Ng6 {[%emt 0:06:30]} 14. e5 {[%emt 0:01:30]} Nh5 {[%emt 0:13:30]} 15. exd6 {[%emt 0:13:30]} Bxf3 {[%emt 0:08:30]} 16. dxc7 {[%emt 0:00:30]} Qd7 {[%emt 0:06:30]} 17. Qd3 {[%emt 0:03:30]} Nh4 {[%emt 0:10:30]} 18. gxf3 {[%emt 0:07:30]} O-O {[%emt 0:02:30]} 19. Bxa6 {[%emt 0:06:30]} Rxa6 {[%emt 0:04:30]} 20. Qxa6 {[%emt 0:00:30]} Nxf3+ {[%emt 0:00:30]} 21. Kg2 {[%emt 0:00:30]} Nxh2 {[%emt 0:01:30]} 22. Kxh2 {[%emt 0:00:00]} Qxc7+ {[%emt 0:02:30]} 23. Kg1 {[%emt 0:02:00]} Bxd4 {[%emt 0:00:30]} 24. Qd3 {[%emt 0:00:30]} Qf4 {[%emt 0:08:30]} 25. Ne4 {[%emt 0:02:30]} Rd8 {[%emt 0:01:59]} 26. Qe2 {[%emt 0:06:30]} Ng7 {[%emt 0:02:36]} 27. Rad1 {[%emt 0:04:30]} Rd5 {[%emt 0:00:49]} 28. Qg4 {[%emt 0:08:30]} Qxg4+ {[%emt 0:01:50]} 29. hxg4 {[%emt 0:00:30]} Bxb2 {[%emt 0:00:07]} 30. Rb1 {[%emt 0:00:00]} Bd4 {[%emt 0:00:49]} 31. c3 {[%emt 0:00:00]} Bc5 {[%emt 0:00:59]} 32. Nf6+ {[%emt 0:00:30]} Kf8 {[%emt 0:00:19]} 33. Nxd5 {[%emt 0:00:00]} exd5 {[%emt 0:00:00]} 34. a5 {[%emt 0:01:00]} 1-0